fUST/lending_fUST_20250908
["ID","MTS","AMOUNT","RATE_DAILY","PERIOD"]
[384173301,1757280638138,-151.0,0.00013698,2]
[384173302,1757280638147,-1665.74,0.00013698,2]
[384173303,1757280638157,-480.0,0.00013698,2]
[384173304,1757280638166,-480.0,0.00013698,2]
[384173305,1757280638176,-822.88,0.00013698,2]
[384173306,1757280638186,-2397.23,0.00013698,2]
[384173307,1757280638195,-2457.03399916,0.00013698,2]
[384173308,1757280638207,-379.2939947,0.00013698,2]
[384173309,1757280638220,-4678.67200614,0.00013698,2]
[384173310,1757280638232,-480.0,0.00013698,2]
[384173311,1757280638243,-480.0,0.00013698,2]
[384173312,1757280638253,-1047.52,0.00013698,2]
[384173313,1757280638263,-480.0,0.00013698,2]
[384173314,1757280638272,-480.0,0.00013698,2]
[384173315,1757280638283,-1511.99,0.00013698,2]
[384173316,1757280638292,-661.45,0.00013698,2]
[384173317,1757280638301,-678.44,0.00013698,2]
[384173318,1757280638310,-332.08483861,0.00013698,2]
[384173319,1757280638322,-147.91516139,0.00013698,2]
[384173320,1757280638333,-842.08483861,0.00013698,2]
[384173336,1757280639965,-418.92081362,0.00013695,2]
[384173338,1757280639975,-1264.34516139,0.00013698,2]
[384173340,1757280639984,-1100.9,0.00013698,2]
[384173342,1757280639994,-480.0,0.00013698,2]
[384173344,1757280640003,-480.0,0.00013698,2]
[384173346,1757280640013,-912.06,0.00013698,2]
[384173348,1757280640022,-2147.69,0.00013698,2]
[384173350,1757280640032,-489.58,0.00013698,2]
[384173352,1757280640041,-576.94,0.00013698,2]
[384173354,1757280640051,-1262.74,0.00013698,2]
[384173356,1757280640061,-480.0,0.00013698,2]
[384173358,1757280640071,-151.0,0.00013698,2]
[384173360,1757280640080,-151.0,0.00013698,2]
[384173362,1757280640090,-480.0,0.00013698,2]
[384173364,1757280640099,-151.0,0.00013698,2]
[384173366,1757280640109,-151.0,0.00013698,2]
[384173368,1757280640118,-480.0,0.00013698,2]
[384173370,1757280640127,-151.0,0.00013698,2]
[384173372,1757280640136,-151.0,0.00013698,2]
[384173374,1757280640145,-151.0,0.00013698,2]
[384173375,1757280640154,-151.0,0.00013698,2]
[384173377,1757280640163,-486.93612416,0.00013698,2]
[384173379,1757280640173,-690.42,0.00013698,2]
[384173381,1757280640182,-151.0,0.00013698,2]
[384173383,1757280640192,-151.0,0.00013698,2]
[384173385,1757280640202,-480.0,0.00013698,2]
[384173387,1757280640211,-4616.69,0.00013698,2]
[384173389,1757280640220,-480.0,0.00013698,2]
[384173391,1757280640229,-480.0,0.00013698,2]
[384173393,1757280640239,-480.0,0.00013698,2]
[384173395,1757280640248,-1192.97,0.00013698,2]
[384173397,1757280640258,-480.0,0.00013698,2]
[384173399,1757280640267,-731.33,0.00013698,2]
[384173401,1757280640276,-623.65,0.00013698,2]
[384173403,1757280640285,-1528.82920237,0.00013698,2]
[384173405,1757280640298,-686.80079763,0.00013698,2]
[384173407,1757280640307,-480.0,0.00013698,2]
[384173409,1757280640316,-1644.02,0.00013698,2]
[384173411,1757280640325,-775.3250429,0.00013698,2]
[384173413,1757280640336,-2.3049571,0.00013698,2]
[384173415,1757280640345,-868.1675494,0.00013698,2]
[384173931,1757280646239,-3023.8224506,0.00013698,2]
[384173933,1757280646248,-1167.22,0.00013698,2]
[384173935,1757280646258,-156.63523887,0.00013698,2]
[384174439,1757280766955,3638.4863255,0.00012795,2]
[384174441,1757280782385,176.26984984,0.00013598,2]
[384174458,1757280922350,161.40632863,0.00013,2]
[384174460,1757280972642,154.23611861,0.00013598,2]
[384174461,1757281167121,154.23611861,0.00013598,2]
[384174496,1757281347434,154.23611861,0.00013598,2]
[384174566,1757281522368,154.23611861,0.00013598,2]
[384174593,1757281683110,154.23611861,0.00013598,2]
[384174646,1757281832238,-402.0,0.00013697,2]
[384174648,1757281832248,-300.0,0.00013697,2]
[384174649,1757281832257,-1200.0,0.00013697,2]
[384174651,1757281832267,-480.0,0.00013698,2]
[384174672,1757281832448,-480.0,0.00013698,2]
[384174674,1757281832460,-480.0,0.00013698,2]
[384174676,1757281832472,-480.0,0.00013698,2]
[384174678,1757281832481,-480.0,0.00013698,2]
[384174680,1757281832491,-480.0,0.00013698,2]
[384174681,1757281832500,-2082.50596658,0.00013698,2]
[384174693,1757281832619,154.23611861,0.00013598,2]
[384174769,1757281833586,168.51509136,0.00013287,2]
[384174947,1757281838130,-960.24674072,0.00013698,2]
[384174949,1757281838140,-821.29560534,0.00013698,2]
[384174951,1757281838150,-601.79559909,0.00013698,2]
[384174953,1757281838159,-480.0,0.00013698,2]
[384174955,1757281838169,-522.3,0.00013698,2]
[384174957,1757281838178,-480.0,0.00013698,2]
[384174959,1757281838188,-480.0,0.00013698,2]
[384174961,1757281838197,-480.0,0.00013698,2]
[384174963,1757281838207,-480.0,0.00013698,2]
[384174965,1757281838216,-689.13,0.00013698,2]
[384174967,1757281838226,-216.29384176,0.00013698,2]
[384174970,1757281838244,-263.70615824,0.00013698,2]
[384174972,1757281838253,-27.3937482,0.00013698,2]
[384174975,1757281838270,-123.6062518,0.00013698,2]
[384174977,1757281838282,-151.0,0.00013698,2]
[384174979,1757281838291,-61.0937482,0.00013698,2]
[384174981,1757281838302,-265.2062518,0.00013698,2]
[384174983,1757281838312,-480.0,0.00013698,2]
[384174985,1757281838321,-157.0,0.00013698,2]
[384174987,1757281838330,-80.3937482,0.00013698,2]
[384175322,1757281843367,-209.6062518,0.00013698,2]
[384175323,1757281843378,-480.0,0.00013698,2]
[384175324,1757281843515,-151.0,0.00013698,2]
[384175325,1757281843526,-151.0,0.00013698,2]
[384175326,1757281843536,-151.0,0.00013698,2]
[384175327,1757281843545,-151.0,0.00013698,2]
[384175328,1757281843555,-212.765832,0.00013698,2]
[384175329,1757281843565,-480.0,0.00013698,2]
[384175330,1757281843575,-480.0,0.00013698,2]
[384175331,1757281843585,-480.0,0.00013698,2]
[384175332,1757281843595,-645.57,0.00013698,2]
[384175333,1757281843604,-480.0,0.00013698,2]
[384175334,1757281843614,-151.0,0.00013698,2]
[384175335,1757281843623,-151.0,0.00013698,2]
[384175336,1757281843632,-151.0,0.00013698,2]
[384175337,1757281843641,-151.0,0.00013698,2]
[384175338,1757281843650,-151.0,0.00013698,2]
[384175339,1757281843664,-151.0,0.00013698,2]
[384175340,1757281843674,-151.0,0.00013698,2]
[384175341,1757281843684,-225.63548,0.00013698,2]
[384175342,1757281843693,-151.0,0.00013698,2]
[384175343,1757281843704,-382.79641766,0.00013698,2]
[384175344,1757281843714,-480.0,0.00013698,2]
[384175346,1757281843723,-480.0,0.00013698,2]
[384175348,1757281843732,-614.89,0.00013698,2]
[384175350,1757281843742,-613.85,0.00013698,2]
[384175351,1757281843752,-157.0,0.00013698,2]
[384175352,1757281843762,-480.0,0.00013698,2]
[384175353,1757281843771,-480.0,0.00013698,2]
[384175354,1757281843780,-302.93562152,0.00013698,2]
[384175355,1757281843789,-157.0,0.00013698,2]
[384175356,1757281843799,-297.42163264,0.00013698,2]
[384175357,1757281843807,-480.0,0.00013698,2]
[384175358,1757281843817,-480.0,0.00013698,2]
[384175360,1757281843827,-480.0,0.00013698,2]
[384175362,1757281843837,-480.0,0.00013698,2]
[384175364,1757281843846,-480.0,0.00013698,2]
[384175366,1757281843856,-480.0,0.00013698,2]
[384175368,1757281843865,-1227.33,0.00013698,2]
[384175370,1757281843874,-480.0,0.00013698,2]
[384175372,1757281843884,-480.0,0.00013698,2]
[384175374,1757281843894,-480.42,0.00013698,2]
[384175375,1757281843904,-214.02284841,0.00013698,2]
[384175378,1757281843914,-236.0,0.00013698,2]
[384175379,1757281843923,-480.0,0.00013698,2]
[384175381,1757281843933,-527.54,0.00013698,2]
[384175383,1757281843946,-480.0,0.00013698,2]
[384175385,1757281843956,-480.0,0.00013698,2]
[384175387,1757281843965,-480.0,0.00013698,2]
[384175389,1757281843975,-151.0,0.00013698,2]
[384175391,1757281843984,-512.78,0.00013698,2]
[384175392,1757281843994,-152.456734,0.00013698,2]
[384175393,1757281844003,-480.0,0.00013698,2]
[384175394,1757281844013,-480.0,0.00013698,2]
[384175395,1757281844023,-480.0,0.00013698,2]
[384175396,1757281844033,-480.0,0.00013698,2]
[384175397,1757281844043,-843.18,0.00013698,2]
[384175398,1757281844052,-151.0,0.00013698,2]
[384175399,1757281844062,-568.29,0.00013698,2]
[384175400,1757281844072,-536.06729541,0.00013698,2]
[384175401,1757281844081,-480.0,0.00013698,2]
[384175402,1757281844090,-3756.79,0.00013698,2]
[384175403,1757281844100,-3054.74689846,0.00013698,2]
[384175404,1757281844109,-480.0,0.00013698,2]
[384175405,1757281844119,-858.04,0.00013698,2]
[384175406,1757281844128,-650.17,0.00013698,2]
[384175407,1757281844138,-480.0,0.00013698,2]
[384175408,1757281844147,-1448.99,0.00013698,2]
[384175409,1757281844157,-480.0,0.00013698,2]
[384175410,1757281844166,-480.0,0.00013698,2]
[384175411,1757281844176,-1003.87,0.00013698,2]
[384175412,1757281844186,-776.24,0.00013698,2]
[384175413,1757281844196,-480.0,0.00013698,2]
[384175414,1757281844205,-480.0,0.00013698,2]
[384175415,1757281844215,-1055.03,0.00013698,2]
[384175416,1757281844225,-480.0,0.00013698,2]
[384175417,1757281844235,-480.0,0.00013698,2]
[384175418,1757281844245,-480.0,0.00013698,2]
[384175419,1757281844254,-151.0,0.00013698,2]
[384175420,1757281844264,-480.0,0.00013698,2]
[384175421,1757281844274,-151.0,0.00013698,2]
[384175422,1757281844283,-480.0,0.00013698,2]
[384175423,1757281844293,-151.0,0.00013698,2]
[384175424,1757281844303,-4424.33,0.00013698,2]
[384175425,1757281844313,-2297.35,0.00013698,2]
[384175426,1757281844322,-874.05,0.00013698,2]
[384175427,1757281844331,-633.89,0.00013698,2]
[384175428,1757281844341,-480.0,0.00013698,2]
[384175429,1757281844351,-552.9,0.00013698,2]
[384175430,1757281844360,-480.0,0.00013698,2]
[384175431,1757281844369,-7201.88,0.00013698,2]
[384175432,1757281844379,-480.0,0.00013698,2]
[384175433,1757281844389,-2018.66,0.00013698,2]
[384175434,1757281844398,-2058.2,0.00013698,2]
[384175435,1757281844407,-2123.32,0.00013698,2]
[384175436,1757281844416,-581.63,0.00013698,2]
[384175437,1757281844426,-480.0,0.00013698,2]
[384175438,1757281844436,-480.0,0.00013698,2]
[384175439,1757281844445,-480.0,0.00013698,2]
[384175440,1757281844454,-157.0,0.00013698,2]
[384175441,1757281844463,-296.83686169,0.00013698,2]
[384175442,1757281844472,-480.0,0.00013698,2]
[384175443,1757281844482,-157.0,0.00013698,2]
[384175444,1757281844491,-661.65,0.00013698,2]
[384175445,1757281844500,-188.11360137,0.00013698,2]
[384175446,1757281844509,-182.00784901,0.00013698,2]
[384175447,1757281844519,-296.48308602,0.00013698,2]
[384175448,1757281844529,-863.0,0.00013698,2]
[384175449,1757281844538,-214.21717488,0.00013698,2]
[384175625,1757281846414,-285.78282512,0.00013698,2]
[384175627,1757281846424,-335.95968639,0.00013698,2]
[384175629,1757281846435,-342.55454446,0.00013698,2]
[384175634,1757281846471,-531.60576915,0.00013698,2]
[384175636,1757281846480,-1575.52,0.00013698,2]
[384175638,1757281846490,-480.0,0.00013698,2]
[384175640,1757281846499,-168.35245492,0.00013698,2]
[384176937,1757281866009,248.68509938,0.0001356,2]
[384176938,1757281871989,1296.14957219,0.00013598,2]
[384176939,1757281956043,500.0,0.00013597,2]
[384176940,1757281956076,500.0,0.00013597,2]
[384176941,1757281956114,500.0,0.00013597,2]
[384176942,1757281956147,500.0,0.00013597,2]
[384176943,1757281956183,500.0,0.00013597,2]
[384176944,1757281956219,500.0,0.00013597,2]
[384176945,1757281956252,500.0,0.00013597,2]
[384176946,1757281956287,500.0,0.00013597,2]
[384176947,1757281956329,500.0,0.00013597,2]
[384176948,1757281956364,500.0,0.00013597,2]
[384176949,1757281956404,500.0,0.00013597,2]
[384176950,1757281956437,500.0,0.00013597,2]
[384176951,1757281956477,402.98287975,0.00013597,2]
[384176952,1757281956506,97.01712025,0.00013597,2]
[384176953,1757281956540,188.59106387,0.00013597,2]
[384176954,1757281956577,500.0,0.00013597,2]
[384176955,1757281956611,500.0,0.00013597,2]
[384176956,1757281956645,500.0,0.00013597,2]
[384176957,1757281956824,500.0,0.00013597,2]
[384176958,1757281956865,500.0,0.00013597,2]
[384176959,1757281956908,529.71351043,0.00013597,2]
[384176960,1757281956943,500.0,0.00013597,2]
[384176961,1757281956983,500.0,0.00013597,2]
[384176962,1757281957015,492.5252563,0.00013597,2]
[384176963,1757281957053,500.0,0.00013597,2]
[384176964,1757281957098,500.0,0.00013597,2]
[384176965,1757281957140,500.0,0.00013597,2]
[384176966,1757281957209,500.0,0.00013597,2]
[384176967,1757281957248,500.0,0.00013597,2]
[384176968,1757281957281,283.43886116,0.00013597,2]
[384176969,1757281957321,500.0,0.00013597,2]
[384176970,1757281957372,500.0,0.00013597,2]
[384176971,1757281957406,446.43931158,0.00013597,2]
[384176972,1757281957464,500.0,0.00013597,2]
[384176973,1757281957498,500.0,0.00013597,2]
[384176974,1757281957550,500.0,0.00013597,2]
[384176975,1757281957585,500.0,0.00013597,2]
[384176976,1757281957652,500.0,0.00013597,2]
[384176977,1757281957706,500.0,0.00013597,2]
[384176978,1757281957767,500.0,0.00013597,2]
[384176979,1757281957846,500.0,0.00013597,2]
[384176980,1757281957897,500.0,0.00013597,2]
[384176981,1757281957964,500.0,0.00013597,2]
[384176982,1757281958021,500.0,0.00013597,2]
[384176983,1757281958082,500.0,0.00013597,2]
[384176984,1757281958141,500.0,0.00013597,2]
[384176985,1757281958197,569.31025495,0.00013597,2]
[384176986,1757281958242,500.0,0.00013597,2]
[384176987,1757281958304,500.0,0.00013597,2]
[384176988,1757281958365,500.0,0.00013597,2]
[384176989,1757281958438,500.0,0.00013597,2]
[384176990,1757281958499,500.0,0.00013597,2]
[384176991,1757281958547,500.0,0.00013597,2]
[384176992,1757281958607,500.0,0.00013597,2]
[384176993,1757281966952,169.96816782,0.00013597,2]
[384176994,1757281982689,300.0,0.00013597,2]
[384176995,1757281989169,152.40070328,0.00013567,2]
[384176998,1757282042352,300.0,0.00013597,2]
[384176999,1757282074899,480.0,0.00024657,120]
[384177000,1757282102451,300.0,0.00013597,2]
[384177001,1757282102482,300.0,0.00013597,2]
[384177002,1757282102513,300.0,0.00013597,2]
[384177003,1757282102620,300.0,0.00013597,2]
[384177004,1757282103237,300.0,0.00013597,2]
[384177005,1757282105529,1200.0,0.00013597,2]
[384177008,1757282163071,300.0,0.00013597,2]
[384177009,1757282184382,152.40070323,0.00013543,2]
[384177010,1757282201042,5925.24042567,0.00013598,2]
[384177011,1757282201071,21559.19214374,0.00013598,2]
[384177012,1757282212354,1901.01937254,0.00013543,2]
[384177013,1757282214370,1901.01937251,0.00013557,2]
[384177014,1757282216457,1901.01937251,0.00013571,2]
[384177015,1757282218344,1901.01937251,0.00013584,2]
[384177016,1757282220356,1901.01937251,0.00013598,2]
[384177017,1757282222841,300.0,0.00013597,2]
[384177018,1757282230517,194.91313742,0.00013597,2]
[384177019,1757282230539,1005.08686258,0.00013597,2]
[384177020,1757282240915,1500.0,0.00013462,2]
[384177021,1757282243329,197.02,0.00012329,2]
[384177022,1757282253856,454.84,0.00012329,2]
[384177023,1757282264536,379.04,0.00012329,2]
[384177025,1757282274987,315.86,0.00012329,2]
[384177026,1757282283553,300.0,0.00013597,2]
[384177027,1757282285470,263.22,0.00012329,2]
[384177028,1757282296045,219.35,0.00012329,2]
[384177029,1757282306944,182.79,0.00012329,2]
[384177030,1757282317637,152.33,0.00012329,2]
[384177031,1757282328135,761.65,0.00012329,2]
[384177032,1757282342285,300.0,0.00013597,2]
[384177034,1757282370977,168.70221705,0.00013543,2]
[384177036,1757282402409,300.0,0.00013597,2]
[384177038,1757282462679,300.0,0.00013597,2]
[384177039,1757282491561,9700.01,0.00013598,2]
[384177040,1757282491588,8622.94504628,0.00013598,2]
[384177041,1757282512520,213.47,0.00012329,2]
[384177042,1757282522579,300.0,0.00013597,2]
[384177043,1757282523283,177.89,0.00012329,2]
[384177044,1757282533775,889.48,0.00012329,2]
[384177045,1757282545472,164.78538839,0.00013543,2]
[384177047,1757282566223,188.00548991,0.00013543,2]
[384177048,1757282582580,300.0,0.00013597,2]
[384177051,1757282642486,300.0,0.00013597,2]
[384177052,1757282702101,300.0,0.00013597,2]
[384177053,1757282702285,300.0,0.00013597,2]
[384177054,1757282702487,300.0,0.00013597,2]
[384177055,1757282702710,300.0,0.00013597,2]
[384177056,1757282702739,300.0,0.00013597,2]
[384177057,1757282714090,1200.0,0.00013597,2]
[384177058,1757282719721,151.0,0.00013598,2]
[384177059,1757282721474,151.0,0.00013598,2]
[384177060,1757282722871,151.0,0.00013598,2]
[384177061,1757282724341,165.3887985,0.00013598,2]
[384177062,1757282762724,300.0,0.00013597,2]
[384177063,1757282765440,343.89516267,0.00013598,2]
[384177064,1757282781996,12215.30336418,0.00013598,2]
[384177072,1757282792417,164.50480368,0.00013543,2]
[384177073,1757282822644,300.0,0.00013597,2]
[384177074,1757282829780,1200.0,0.00013597,2]
[384177078,1757282882411,300.0,0.00013597,2]
[384177080,1757282943149,300.0,0.00013597,2]
[384177081,1757282961411,3000.0,0.0001254,2]
[384177082,1757283002589,300.0,0.00013597,2]
[384177083,1757283005639,1200.0,0.00013597,2]
[384177149,1757283032611,-138644.58183369,0.00013598,2]
[384177151,1757283032621,-500.0,0.00013606,2]
[384177154,1757283032631,-762.02414734,0.00013643,2]
[384177157,1757283032641,-500.0,0.00013673,2]
[384177159,1757283032650,-500.0,0.00013673,2]
[384177162,1757283032659,-500.0,0.00013673,2]
[384177165,1757283032669,-1000.0,0.0001369,2]
[384177169,1757283032678,-1000.0,0.0001369,2]
[384177171,1757283032687,-188.01,0.0001369,2]
[384177173,1757283032696,-349.0,0.0001369,2]
[384177175,1757283032705,-254.79059288,0.00013697,2]
[384177177,1757283032714,-364.72003926,0.00013697,2]
[384177178,1757283032723,-532.02252154,0.00013698,2]
[384177180,1757283032733,-480.0,0.00013698,2]
[384177182,1757283032742,-481.09241571,0.00013698,2]
[384177197,1757283032851,-480.0,0.00013698,2]
[384177199,1757283032867,-480.0,0.00013698,2]
[384177201,1757283032876,-165.9079726,0.00013698,2]
[384177203,1757283032885,-465.09751842,0.00013698,2]
[384177205,1757283032895,-457.07758617,0.00013698,2]
[384177207,1757283032904,-480.0,0.00013698,2]
[384177209,1757283032913,-480.0,0.00013698,2]
[384177211,1757283032923,-480.0,0.00013698,2]
[384177213,1757283032932,-480.0,0.00013698,2]
[384177215,1757283032942,-480.0,0.00013698,2]
[384177217,1757283032952,-480.0,0.00013698,2]
[384177219,1757283032962,-212.79114993,0.00013698,2]
[384177221,1757283032971,-480.0,0.00013698,2]
[384177223,1757283032981,-480.0,0.00013698,2]
[384177225,1757283032991,-480.0,0.00013698,2]
[384177227,1757283033000,-480.0,0.00013698,2]
[384177229,1757283033010,-480.0,0.00013698,2]
[384177231,1757283033020,-480.0,0.00013698,2]
[384177233,1757283033029,-480.0,0.00013698,2]
[384177234,1757283033039,-480.0,0.00013698,2]
[384177236,1757283033048,-480.0,0.00013698,2]
[384177238,1757283033058,-480.0,0.00013698,2]
[384177240,1757283033068,-480.0,0.00013698,2]
[384177242,1757283033078,-480.0,0.00013698,2]
[384177244,1757283033087,-480.0,0.00013698,2]
[384177246,1757283033097,-480.0,0.00013698,2]
[384177248,1757283033106,-480.0,0.00013698,2]
[384177250,1757283033115,-480.0,0.00013698,2]
[384177252,1757283033125,-480.0,0.00013698,2]
[384177254,1757283033134,-480.0,0.00013698,2]
[384177256,1757283033144,-480.0,0.00013698,2]
[384177258,1757283033153,-484.02280204,0.00013698,2]
[384177260,1757283033163,-480.0,0.00013698,2]
[384177262,1757283033173,-480.0,0.00013698,2]
[384177264,1757283033182,-6038.4025106,0.00013698,2]
[384177266,1757283033192,-480.0,0.00013698,2]
[384177268,1757283033203,-480.0,0.00013698,2]
[384177270,1757283033212,-480.0,0.00013698,2]
[384177272,1757283033221,-480.0,0.00013698,2]
[384177274,1757283033231,-480.0,0.00013698,2]
[384177276,1757283033241,-480.0,0.00013698,2]
[384177278,1757283033250,-480.0,0.00013698,2]
[384177280,1757283033259,-480.0,0.00013698,2]
[384177282,1757283033268,-480.0,0.00013698,2]
[384177285,1757283033277,-480.0,0.00013698,2]
[384177288,1757283033286,-480.0,0.00013698,2]
[384177291,1757283033296,-480.0,0.00013698,2]
[384177293,1757283033305,-480.0,0.00013698,2]
[384177295,1757283033314,-480.0,0.00013698,2]
[384177297,1757283033324,-1000.0,0.00013698,2]
[384177298,1757283033332,-480.0,0.00013698,2]
[384177300,1757283033342,-480.0,0.00013698,2]
[384177302,1757283033351,-480.0,0.00013698,2]
[384177304,1757283033360,-480.0,0.00013698,2]
[384177306,1757283033370,-480.0,0.00013698,2]
[384177308,1757283033380,-480.0,0.00013698,2]
[384177310,1757283033389,-480.0,0.00013698,2]
[384177312,1757283033398,-480.0,0.00013698,2]
[384177314,1757283033407,-480.0,0.00013698,2]
[384177316,1757283033416,-480.0,0.00013698,2]
[384177318,1757283033426,-480.0,0.00013698,2]
[384177320,1757283033435,-151.0,0.00013698,2]
[384177322,1757283033445,-152.873393,0.00013698,2]
[384177324,1757283033454,-481.0186502,0.00013698,2]
[384177326,1757283033463,-480.0,0.00013698,2]
[384177328,1757283033472,-480.0,0.00013698,2]
[384177330,1757283033482,-480.0,0.00013698,2]
[384177332,1757283033491,-480.0,0.00013698,2]
[384177334,1757283033501,-500.0,0.00013698,2]
[384177336,1757283033510,-500.0,0.00013698,2]
[384177338,1757283033520,-480.0,0.00013698,2]
[384177339,1757283033530,-500.0,0.00013698,2]
[384177341,1757283033539,-500.0,0.00013698,2]
[384177343,1757283033549,-500.0,0.00013698,2]
[384177344,1757283033559,-500.0,0.00013698,2]
[384177345,1757283033568,-480.0,0.00013698,2]
[384177347,1757283033578,-500.0,0.00013698,2]
[384177349,1757283033587,-500.0,0.00013698,2]
[384177351,1757283033596,-500.0,0.00013698,2]
[384177353,1757283033606,-500.0,0.00013698,2]
[384177354,1757283033615,-480.0,0.00013698,2]
[384177357,1757283033625,-480.0,0.00013698,2]
[384177359,1757283033634,-480.0,0.00013698,2]
[384177360,1757283033644,-480.0,0.00013698,2]
[384177362,1757283033653,-480.0,0.00013698,2]
[384177364,1757283033663,-480.0,0.00013698,2]
[384177366,1757283033672,-480.0,0.00013698,2]
[384177368,1757283033682,-480.0,0.00013698,2]
[384177370,1757283033692,-480.0,0.00013698,2]
[384177372,1757283033702,-480.0,0.00013698,2]
[384177374,1757283033713,-480.0,0.00013698,2]
[384177376,1757283033723,-480.0,0.00013698,2]
[384177378,1757283033734,-410.49221079,0.00013698,2]
[384177380,1757283033745,-480.0,0.00013698,2]
[384177382,1757283033755,-480.0,0.00013698,2]
[384177384,1757283033765,-480.0,0.00013698,2]
[384177386,1757283033775,-480.0,0.00013698,2]
[384177388,1757283033785,-480.0,0.00013698,2]
[384177390,1757283033794,-480.0,0.00013698,2]
[384177392,1757283033803,-480.0,0.00013698,2]
[384177393,1757283033813,-480.0,0.00013698,2]
[384177395,1757283033824,-480.0,0.00013698,2]
[384177396,1757283033833,-480.0,0.00013698,2]
[384177398,1757283033844,-480.0,0.00013698,2]
[384177399,1757283033854,-480.0,0.00013698,2]
[384177401,1757283033865,-480.0,0.00013698,2]
[384177403,1757283033875,-480.0,0.00013698,2]
[384177405,1757283033885,-480.0,0.00013698,2]
[384177406,1757283033895,-480.0,0.00013698,2]
[384177408,1757283033905,-151.0,0.00013698,2]
[384177410,1757283033915,-151.0,0.00013698,2]
[384177412,1757283033928,-153.296678,0.00013698,2]
[384177413,1757283033939,-480.0,0.00013698,2]
[384177415,1757283033950,-480.0,0.00013698,2]
[384177417,1757283033961,-480.0,0.00013698,2]
[384177418,1757283033971,-480.0,0.00013698,2]
[384177420,1757283033983,-480.0,0.00013698,2]
[384177421,1757283033994,-531.42,0.00013698,2]
[384177422,1757283034009,-480.0,0.00013698,2]
[384177423,1757283034018,-480.0,0.00013698,2]
[384177425,1757283034028,-308.0,0.00013698,2]
[384177427,1757283034037,-15098.5967895,0.00013698,2]
[384177428,1757283034047,-480.0,0.00013698,2]
[384177430,1757283034057,-480.0,0.00013698,2]
[384177431,1757283034066,-480.0,0.00013698,2]
[384177433,1757283034077,-480.0,0.00013698,2]
[384177435,1757283034086,-480.0,0.00013698,2]
[384177437,1757283034095,-480.0,0.00013698,2]
[384177438,1757283034105,-480.0,0.00013698,2]
[384177439,1757283034114,-480.0,0.00013698,2]
[384177441,1757283034123,-480.0,0.00013698,2]
[384177443,1757283034133,-480.0,0.00013698,2]
[384177444,1757283034142,-480.0,0.00013698,2]
[384177446,1757283034151,-480.0,0.00013698,2]
[384177448,1757283034161,-480.0,0.00013698,2]
[384177449,1757283034170,-480.0,0.00013698,2]
[384177451,1757283034180,-480.0,0.00013698,2]
[384177453,1757283034189,-480.0,0.00013698,2]
[384177455,1757283034199,-480.0,0.00013698,2]
[384177456,1757283034208,-842.12,0.00013698,2]